bitfinex/quotes_ETHUSD_20251017
["timestamp","ask_amount","ask_price","bid_price","bid_amount"]
[1760724352002,1e-08,3830.0,3829.9,2.61103423]
[1760724353126,1e-08,3830.0,3829.9,3.13324941]
[1760724355935,1e-08,3830.0,3829.9,2.61103423]
[1760724358517,1e-08,3830.0,3829.9,2.63714457]
[1760724359553,1e-08,3830.0,3829.9,2.61103423]
[1760724359883,1e-08,3830.0,3829.9,9.38774757]
[1760724360090,1e-08,3830.0,3829.9,8.24913423]
[1760724360272,0.002,3830.8,3830.7,2.61048894]
[1760724360469,0.002,3830.8,3830.7,5.32459382]
[1760724360777,0.002,3830.8,3830.7,2.61048894]
[1760724360949,0.447,3830.8,3830.7,2.61048894]
[1760724361281,0.002,3830.8,3830.7,2.61048894]
[1760724361577,0.002,3830.8,3830.7,3.3330999]
[1760724363048,0.002,3830.8,3830.7,3.13259502]
[1760724364244,0.002,3830.8,3830.7,3.30699502]
[1760724364470,0.002,3830.8,3830.7,3.3330999]
[1760724364875,0.002,3830.8,3830.7,3.13259502]
[1760724366170,0.002,3830.8,3830.7,3.1586999]
[1760724366568,0.002,3830.8,3830.7,3.13259502]
[1760724368193,0.002,3830.8,3830.7,3.1586999]
[1760724368974,0.002,3830.8,3830.7,3.13259502]
[1760724370497,0.002,3830.8,3830.7,3.26299502]
[1760724371397,0.4533,3830.8,3830.7,3.26299502]
[1760724371568,0.4533,3830.8,3830.7,2.74088894]
[1760724373963,0.002,3830.8,3830.7,2.74088894]
[1760724374161,0.002,3830.8,3830.7,2.76699382]
[1760724374405,0.002,3830.8,3830.7,2.74088894]
[1760724376838,0.002,3830.8,3829.9,1.64189078]
[1760724376839,0.4533,3830.8,3829.9,1.64189078]
[1760724376987,0.4513,3830.7,3830.5,2.61057453]
[1760724377296,0.4513,3830.6,3830.5,2.61057453]
[1760724377614,0.002,3830.8,3830.5,2.61057453]
[1760724377615,0.002,3830.8,3830.7,2.61048894]
[1760724377918,0.002,3830.8,3830.7,17.97292547]
[1760724378114,0.002,3830.8,3830.7,20.29121013]
[1760724378296,0.002,3830.8,3830.7,22.01921013]
[1760724378494,0.002,3830.8,3830.7,22.19361013]
[1760724379493,1e-08,3831.2,3831.1,2.61021638]
[1760724379698,1e-08,3831.2,3831.1,5.81826795]
[1760724380826,1e-08,3831.2,3831.1,5.99266795]
[1760724380983,1e-08,3831.2,3831.1,7.72066795]
[1760724381184,1e-08,3831.2,3831.1,7.54626795]
[1760724382906,0.2189,3833.0,3831.1,7.54626795]
[1760724382907,0.2314,3832.4,3831.7,2.60975532]
[1760724383103,0.2314,3832.4,3832.3,2.60939905]
[1760724383333,0.6945,3832.4,3832.3,2.60939905]
[1760724384016,0.2189,3833.0,3832.9,2.60899058]
[1760724384399,0.682,3833.0,3832.9,2.60899058]
[1760724384706,0.682,3833.0,3831.8,2.87071507]
[1760724384707,0.682,3833.0,3831.8,0.26097553]
[1760724384937,0.2314,3831.9,3831.8,4.33773954]
[1760724385436,0.6945,3831.9,3831.8,4.33773954]
[1760724386001,0.6945,3831.9,3831.7,2.60976248]
[1760724386225,0.6945,3831.9,3831.5,2.60993464]
[1760724386226,0.4631,3831.8,3831.5,2.60993464]
[1760724386398,0.4631,3831.7,3831.1,0.52205157]
[1760724386597,0.4631,3831.7,3831.6,2.60987576]
[1760724386822,0.2314,3831.9,3831.8,2.60973954]
[1760724387212,0.6945,3831.9,3831.6,0.1304]
[1760724387542,0.6945,3831.9,3831.0,2.61023741]
[1760724387543,2.60975824,3831.8,3831.0,2.61023741]
[1760724387837,0.4631,3831.7,3831.2,2.74052363]
[1760724388033,0.4631,3831.6,3831.3,2.61007472]
[1760724388338,0.4631,3831.5,3831.2,2.74053693]
[1760724388528,0.1304,3831.8,3831.2,2.74053693]
[1760724388728,0.4631,3831.4,3831.2,2.74053693]
[1760724388920,0.4631,3831.3,3831.2,0.1304]
[1760724389319,0.4631,3831.3,3830.6,0.001]
[1760724389523,0.2314,3830.7,3830.6,0.001]
[1760724389725,0.5935,3831.3,3830.8,2.61040579]
[1760724389947,0.4631,3831.2,3830.6,2.61151993]
[1760724390249,0.5935,3831.3,3830.8,2.61035475]
[1760724390454,0.2314,3830.9,3830.8,2.61035475]
[1760724391319,0.4631,3831.2,3831.1,2.61021638]
[1760724391548,0.4631,3831.2,3831.0,2.61022859]
[1760724391728,0.4631,3831.2,3831.1,2.61017338]
[1760724392246,0.4631,3831.2,3831.1,2.61021638]
[1760724392447,0.1304,3831.3,3831.2,2.61014825]
[1760724392747,0.002,3831.8,3831.4,2.60999642]
[1760724392920,0.29084283,3831.8,3831.4,2.60999642]
[1760724393319,0.4631,3831.7,3831.4,2.60999642]
[1760724393549,0.4631,3831.6,3831.4,2.60999642]
[1760724393849,0.4631,3831.5,3831.4,2.60999642]
[1760724394355,0.4631,3831.5,3830.6,0.001]
[1760724394554,0.4631,3831.5,3831.2,2.61009513]
[1760724394718,0.4631,3831.4,3830.6,0.001]
[1760724394918,0.2314,3830.7,3830.6,2.61155709]
[1760724395115,0.2314,3830.7,3830.6,0.001]
[1760724395116,3.30498894,3830.7,3830.6,0.001]
[1760724395320,3.89652396,3830.7,3830.6,0.001]
[1760724395629,3.89652396,3830.7,3829.9,0.001]
[1760724395630,2.6106934,3830.4,3829.9,0.001]
[1760724395959,2.61096605,3830.0,3829.9,0.001]
[1760724396173,3.13315089,3830.0,3829.9,0.001]
[1760724396361,2.61151154,3829.2,3829.1,0.001]
[1760724396516,2.61176689,3828.9,3828.3,0.001]
[1760724396720,0.2314,3829.3,3828.3,0.001]
[1760724396721,0.4631,3829.1,3828.3,0.001]
[1760724397058,0.4631,3828.8,3828.3,0.001]
[1760724397792,0.4631,3828.8,3828.4,2.61204213]
[1760724397957,0.4631,3828.8,3828.3,0.001]
[1760724398480,0.4631,3828.8,3828.3,2.61311691]
[1760724398667,0.4631,3828.8,3828.7,2.61285258]
[1760724398986,0.4631,3828.8,3828.7,0.001]
[1760724399591,0.4631,3829.1,3828.7,2.61285258]
[1760724399791,0.27691804,3829.3,3828.7,2.61285258]
[1760724399792,0.27691804,3829.3,3828.7,0.001]
[1760724400109,0.4096577,3829.7,3829.2,2.61151154]
[1760724400310,0.4096577,3829.7,3828.8,2.61178437]
[1760724400311,0.4096577,3829.7,3829.6,2.61123877]
[1760724400609,0.4096577,3829.7,3828.9,2.61171615]
[1760724400610,0.78528994,3832.0,3829.3,2.61144334]
[1760724400611,0.04551269,3830.5,3829.3,2.61144334]
[1760724400890,0.6945,3830.7,3829.3,2.61144334]
[1760724400891,0.6945,3830.7,3829.4,0.26114433]
[1760724401205,0.6945,3830.7,3829.6,2.61123877]
[1760724401390,0.6945,3830.7,3829.4,0.26114433]
[1760724401555,0.6945,3830.7,3830.3,2.61070545]
[1760724401761,0.4631,3830.6,3830.3,2.61070545]
[1760724401972,0.4631,3830.5,3830.4,2.6106934]
[1760724402174,0.2314,3830.7,3830.2,2.61082913]
[1760724402373,0.4631,3830.6,3830.2,2.61082913]
[1760724402694,0.5935,3830.6,3830.4,2.61067046]
[1760724402884,0.5935,3830.6,3829.5,0.1794]
[1760724402885,0.04550368,3830.9,3830.5,2.61062524]
[1760724403061,0.04550368,3830.9,3830.8,2.61042079]
[1760724403062,0.1304,3830.9,3830.8,2.61042079]
[1760724403463,0.1304,3830.9,3830.6,2.61054825]
[1760724403464,0.1304,3830.9,3830.7,2.61047764]
[1760724403681,0.1304,3830.9,3830.3,0.1304]
[1760724403682,0.1304,3830.9,3830.8,2.61042079]
[1760724404413,0.1304,3831.3,3831.1,2.61016236]
[1760724404705,0.1304,3831.3,3830.7,0.1304]
[1760724404706,0.002,3831.8,3831.2,0.1794]
[1760724404858,0.002,3831.8,3831.6,2.60987168]
[1760724404859,0.1324,3831.8,3831.6,2.60987168]
[1760724405082,0.1324,3831.8,3831.5,2.60992285]
[1760724405292,0.1324,3831.8,3831.4,2.60999429]
[1760724405495,0.1324,3831.8,3831.3,2.61006539]
[1760724405496,0.4631,3831.7,3831.3,2.61006539]
[1760724405691,0.4631,3831.7,3831.1,0.1304]
[1760724405692,0.4631,3831.6,3831.1,0.1304]
[1760724406089,2.74215665,3831.8,3831.1,0.1304]
[1760724406310,0.4631,3831.5,3831.1,0.1304]
[1760724406500,0.1304,3831.4,3831.0,2.61021975]
[1760724406817,0.4631,3831.3,3830.9,2.61030483]
[1760724407110,0.4631,3831.2,3831.0,2.61027934]
[1760724407319,0.1304,3831.4,3830.8,0.1304]
[1760724407320,0.1304,3831.4,3830.9,2.61035265]
[1760724407500,0.1304,3831.4,3831.0,2.61022642]
[1760724407501,0.4631,3831.3,3831.0,2.61022642]
[1760724407707,0.1304,3831.4,3831.1,2.6101983]
[1760724407708,0.4631,3831.2,3831.1,2.6101983]
[1760724408213,0.1304,3831.4,3831.2,2.61013487]
[1760724408414,0.1304,3831.4,3831.3,2.61008012]
[1760724408594,0.1304,3831.4,3831.2,2.61012447]
[1760724408790,0.1304,3831.4,3831.1,2.61019942]
[1760724409193,0.1304,3831.4,3831.2,2.61013204]
[1760724409789,0.1324,3831.8,3831.5,2.60991747]
[1760724409999,0.1324,3831.8,3831.1,0.1304]
[1760724410202,0.5955,3831.8,3831.1,2.74057053]
[1760724410414,1.20012295,3831.8,3831.1,2.74057053]
[1760724410634,1.20012295,3831.8,3831.2,2.61014659]
[1760724411132,1.06972295,3831.8,3831.2,2.61010915]
[1760724411335,1.06972295,3831.8,3830.3,0.1794]
[1760724411336,0.1304,3831.4,3831.3,2.61008012]
[1760724411634,0.5955,3831.8,3831.5,2.60989667]
[1760724411790,0.1324,3831.8,3831.1,0.1304]
[1760724411991,0.1304,3831.4,3830.8,0.1304]
[1760724412188,0.002,3831.8,3831.4,2.60994943]
[1760724412534,0.002,3831.8,3831.7,2.60980765]
[1760724413331,0.002,3831.8,3831.7,3.14481921]
[1760724413525,0.002,3831.8,3831.7,3.27521921]
[1760724415604,0.002,3831.8,3831.7,0.66541156]
[1760724415803,0.002,3831.8,3831.7,0.1304]
[1760724416130,0.002,3831.8,3831.5,2.60993634]
[1760724416314,0.002,3831.8,3831.6,2.60986679]
[1760724416519,0.002,3831.8,3831.4,0.1304]
[1760724416722,0.002,3831.8,3831.6,2.60987536]
[1760724417125,0.002,3831.8,3831.7,2.60980765]
[1760724418001,0.002,3831.8,3831.5,2.60990072]
[1760724418809,0.002,3831.8,3831.4,2.74039372]
[1760724419028,0.4708,3831.8,3831.4,2.74039372]
[1760724419219,0.4708,3831.8,3831.5,2.60993636]
[1760724419912,0.002,3831.8,3831.5,2.60994388]
[1760724420237,2.6117433,3831.8,3831.4,0.1304]
[1760724420398,0.4708,3831.8,3831.4,0.1304]
[1760724420604,3.07861428,3831.7,3830.5,1.728]
[1760724420804,0.1304,3831.6,3831.0,2.61026652]
[1760724421032,0.4688,3831.5,3830.3,0.1794]
[1760724421240,2.61006775,3831.4,3829.8,2.79047346]
[1760724421505,2.61006775,3831.4,3827.8,0.78599405]
[1760724421506,0.2158,3830.4,3829.2,0.1794]
[1760724421732,3.07958061,3830.3,3829.6,2.61117776]
[1760724421918,3.07957016,3830.3,3829.2,0.1794]
[1760724422125,0.2158,3830.4,3829.2,0.1794]
[1760724422126,0.4688,3830.2,3829.2,0.1794]
[1760724422335,0.4688,3830.2,3829.3,0.02611443]
[1760724422634,0.2158,3830.4,3829.8,2.61110103]
[1760724422858,2.93650998,3830.3,3829.3,2.61143153]
[1760724423143,0.75674335,3830.3,3829.6,2.61117796]
[1760724423350,0.75674335,3830.3,3829.7,2.61110696]
[1760724423505,0.75674335,3830.3,3829.9,2.61098776]
[1760724423709,2.65601797,3830.7,3829.3,0.02611443]
[1760724423710,0.04550988,3830.7,3830.4,2.61064289]
[1760724423936,0.04550988,3830.7,3830.4,2.61064551]
[1760724424136,0.26100677,3831.3,3829.3,2.61144334]
[1760724424137,0.26100677,3831.3,3830.5,2.61061999]
[1760724424345,0.45502866,3831.2,3830.2,2.61078755]
[1760724424507,0.04550005,3831.2,3830.3,0.1794]
[1760724424841,0.04550005,3831.2,3830.6,2.61055638]
[1760724425015,0.04550005,3831.2,3829.9,0.1794]
[1760724425016,0.04550005,3831.2,3830.0,2.61096605]
[1760724425347,0.47650005,3831.2,3830.1,0.27903661]
[1760724425552,0.47650005,3831.2,3830.6,2.61050575]
[1760724425722,0.47650005,3831.2,3830.7,2.61043403]
[1760724426038,0.47650005,3831.2,3830.1,0.27903661]
[1760724426039,0.431,3831.1,3830.5,2.61061404]
[1760724426214,0.2303,3830.8,3829.7,1.728]
[1760724426416,0.2303,3830.8,3830.2,2.61078096]
[1760724426744,0.2303,3830.8,3830.0,2.61091464]
[1760724426745,0.1613,3830.8,3830.0,2.61091464]
[1760724426905,0.2303,3830.7,3830.0,2.61091464]
[1760724427110,0.2303,3830.7,3829.2,1.9074]
[1760724427422,1.728,3831.5,3829.7,2.61117058]
[1760724427423,0.2303,3830.9,3829.7,2.61117058]
[1760724427628,0.2303,3830.9,3829.8,2.6111024]
[1760724427829,0.2303,3830.9,3830.4,2.61064587]
[1760724428346,0.2303,3830.9,3830.5,2.6106195]
[1760724428542,0.2303,3830.9,3830.3,2.61076155]
[1760724428863,0.2303,3830.9,3830.4,2.61066967]
[1760724429055,0.2303,3830.9,3830.2,2.77752825]
[1760724429351,0.2303,3830.9,3830.3,2.61076155]
[1760724429723,0.2303,3830.9,3830.4,2.6106934]
[1760724430221,2.84066239,3830.9,3830.1,2.61087885]
[1760724430421,0.2303,3830.9,3829.5,0.4674]
[1760724430855,0.2303,3830.9,3830.7,2.61048458]
[1760724431062,0.2303,3830.9,3830.1,2.7775457]
[1760724431254,0.1304,3830.6,3830.4,2.61068068]
[1760724431434,0.1304,3830.6,3830.5,2.61062524]
[1760724432044,0.04550045,3831.4,3831.0,2.61025718]
[1760724432358,0.04550045,3831.4,3831.1,2.61019435]
[1760724433056,0.1304,3831.2,3831.1,2.61021638]
[1760724433251,0.1304,3831.2,3830.5,0.4674]
[1760724433458,0.1304,3831.2,3830.6,0.32085393]
[1760724433663,0.1304,3831.2,3830.9,2.61029834]
[1760724433828,0.1304,3831.2,3830.7,2.61048894]
[1760724434162,0.1304,3831.2,3830.3,0.1304]
[1760724434340,0.1304,3831.2,3830.7,2.61042966]
[1760724434654,0.1304,3831.2,3830.3,0.1304]
[1760724434867,0.002,3831.8,3830.2,0.4674]
[1760724434868,0.002,3831.8,3831.7,2.60980765]
[1760724435073,0.002,3831.8,3831.7,2.63590572]
[1760724435235,0.002,3831.8,3831.7,3.07720765]
[1760724435431,0.002,3831.8,3831.7,3.20760765]
[1760724435755,0.002,3831.8,3831.7,5.68135658]
[1760724435961,0.002,3831.8,3831.7,5.65525851]
[1760724436274,0.002,3832.6,3832.5,2.60926288]
[1760724436782,0.002,3832.6,3832.5,3.1027555]
[1760724438178,0.002,3832.6,3832.5,3.07666288]
[1760724438378,0.002,3832.6,3832.5,5.44689833]
[1760724438683,0.002,3832.6,3832.5,5.75866288]
[1760724440742,0.002,3832.6,3832.5,2.60926288]
[1760724441447,0.431,3832.6,3832.5,2.60926288]
[1760724441845,0.002,3832.6,3832.5,2.60926288]
[1760724442157,0.002,3832.6,3832.5,3.1037555]
[1760724442361,0.002,3832.6,3832.5,3.64897359]
[1760724443100,0.002,3832.6,3832.5,3.67506621]
[1760724443405,0.002,3832.6,3832.5,5.40306621]
[1760724443700,0.002,3833.4,3833.2,2.60878639]
[1760724443866,0.002,3833.4,3833.2,5.81155212]
[1760724444191,0.002,3833.4,3833.2,6.27995212]
[1760724444362,0.002,3833.4,3833.2,8.00795212]
[1760724444900,0.003,3834.1,3834.0,2.60824204]
[1760724445073,0.2139,3835.6,3835.5,2.607222]
[1760724445428,0.92918104,3835.8,3835.7,2.60708605]
[1760724445694,0.92918104,3835.8,3835.0,2.8477]
[1760724445895,0.92918104,3835.8,3835.7,2.73668605]
[1760724446105,1.37378104,3835.8,3835.7,2.73668605]
[1760724446295,0.92918104,3835.8,3835.7,2.73668605]
[1760724447361,0.92918104,3835.8,3835.7,0.1296]
[1760724448065,1.37378104,3835.8,3835.7,0.1296]
[1760724448263,1.37378104,3835.8,3835.5,2.60720149]
[1760724448687,0.92918104,3835.8,3835.4,2.60728998]
[1760724448970,0.92918104,3835.8,3835.5,2.607222]
[1760724449278,0.4446,3835.7,3834.9,2.68]
[1760724449472,0.92918104,3835.8,3835.0,2.60756192]
[1760724449703,0.92918104,3835.8,3834.7,3.08203561]
[1760724449704,0.92918104,3835.8,3834.8,2.60769792]
[1760724449871,0.92918104,3835.8,3834.7,1.8947]
[1760724450064,0.92918104,3835.8,3834.8,0.45747]
[1760724450262,0.92918104,3835.8,3835.2,2.607399]
[1760724450701,0.92918104,3835.8,3834.7,0.1667]
[1760724451002,0.2139,3834.8,3833.5,15.63604002]
[1760724451173,0.2139,3834.8,3834.0,2.60817728]
[1760724451372,0.4446,3834.7,3832.9,15.16764002]
[1760724451707,0.4446,3834.7,3834.0,2.60824128]
[1760724452201,0.4446,3834.7,3834.0,2.60818749]
[1760724452384,0.4446,3834.7,3834.1,2.60813036]
[1760724452901,2.82165671,3834.8,3833.5,2.60855409]
[1760724452902,2.60790942,3834.5,3833.5,2.60855409]
[1760724453198,3.05244159,3834.6,3833.9,2.60830782]
[1760724453403,2.60791365,3834.5,3833.8,2.60836345]
[1760724453962,3.0524426,3834.6,3833.8,2.60831889]
[1760724454164,3.0524426,3834.6,3833.9,2.60828807]
[1760724454473,3.0524426,3834.6,3834.1,2.6081224]
[1760724454474,1.06021454,3834.6,3834.1,2.6081224]
[1760724454695,0.4446,3834.5,3833.5,1.728]
[1760724454877,0.4446,3834.5,3834.1,2.60815832]
[1760724455498,0.4446,3834.4,3833.8,2.60833304]
[1760724455696,2.60803797,3834.3,3833.2,0.52176573]
[1760724455976,0.4446,3834.4,3833.2,0.52176573]
[1760724455977,0.4446,3834.4,3833.7,2.60839515]
[1760724456180,0.36681367,3834.3,3833.7,2.60839515]
[1760724456386,0.2139,3833.8,3832.5,1.03971071]
[1760724456592,0.2139,3833.8,3831.6,2.60984831]
[1760724456593,0.2139,3833.8,3832.4,0.1667]
[1760724456791,0.4446,3833.7,3832.9,2.60894001]
[1760724456991,3.05306416,3833.7,3832.9,2.6089236]
[1760724457178,0.32669642,3833.6,3832.5,1.728]
[1760724457386,0.2139,3833.8,3832.4,0.1667]
[1760724457608,2.60855755,3833.6,3832.4,0.1667]
[1760724457807,0.4446,3833.5,3832.7,2.60907364]
[1760724458013,3.0531838,3833.5,3832.7,2.60911518]
[1760724458317,2.73923846,3833.2,3832.5,0.1304]
[1760724458678,0.4446,3833.1,3832.5,2.73965718]
[1760724458911,2.73923846,3833.2,3832.5,0.1304]
[1760724458912,0.4446,3833.0,3832.5,0.1304]
[1760724459115,0.1304,3832.7,3832.1,0.1304]
[1760724459417,0.1304,3832.7,3832.5,2.60925684]
[1760724459712,0.1304,3832.7,3832.4,2.60931498]
[1760724460082,0.1304,3832.7,3832.6,2.6091948]
[1760724460423,0.1304,3832.7,3832.4,0.001]
[1760724460603,0.1304,3832.7,3832.5,2.60926288]
[1760724461319,0.4446,3833.3,3832.6,2.63528674]
[1760724461502,0.1304,3833.0,3832.8,2.60905553]
[1760724461808,0.1304,3833.0,3832.4,2.61032157]
[1760724462109,0.1304,3833.0,3832.4,0.001]
[1760724462310,0.1304,3833.0,3832.6,2.6091499]
[1760724462512,0.1304,3833.0,3832.4,2.61031736]
[1760724462513,0.1304,3833.0,3832.7,2.60909803]
[1760724462692,0.1304,3833.0,3832.4,2.61032896]
[1760724462891,0.1304,3833.0,3832.5,2.60924581]
[1760724463109,0.3607,3833.0,3832.4,2.61030919]
[1760724463405,0.3607,3833.0,3832.4,2.61028395]
[1760724463715,0.1304,3833.0,3832.6,2.60914744]
[1760724464216,0.1304,3833.0,3832.5,2.60925961]
[1760724464378,0.4446,3832.9,3832.5,2.60925961]
[1760724464878,3.05370353,3832.8,3832.4,0.001]
[1760724465075,0.1304,3832.6,3832.4,0.001]
[1760724465480,0.4446,3832.5,3832.4,0.001]
[1760724465912,3.05386288,3832.5,3832.4,0.001]
[1760724466287,4.78186288,3832.5,3832.4,0.001]
[1760724467181,22.01529388,3832.5,3832.4,0.001]
[1760724467505,28.14868295,3832.5,3832.4,0.001]
[1760724467707,42.13896297,3832.5,3832.4,0.001]
[1760724468028,42.54839694,3832.5,3832.4,0.001]
[1760724468241,39.51337207,3832.5,3832.4,0.001]
[1760724468521,42.45927407,3832.5,3832.4,0.001]
[1760724468727,41.45927407,3832.5,3832.4,0.001]
[1760724469210,41.50477387,3832.5,3832.4,0.001]
[1760724469412,44.35648187,3832.5,3832.4,0.001]
[1760724469621,42.87628187,3832.5,3832.4,0.001]
[1760724470390,44.18735787,3832.5,3832.4,0.001]
[1760724470706,36.60683587,3832.5,3832.4,0.001]
[1760724471324,2.60953524,3832.1,3832.0,0.001]
[1760724471489,35.03223374,3832.1,3832.0,0.001]
[1760724471691,35.48853374,3832.1,3832.0,0.001]
[1760724471886,32.02550774,3832.1,3832.0,0.001]
[1760724472086,32.07101324,3832.1,3832.0,0.001]
[1760724472403,32.68306424,3832.1,3832.0,0.001]
[1760724473054,32.68306424,3832.1,3829.6,0.001]
[1760724473055,2.6111024,3829.8,3829.6,0.001]
[1760724473244,4.33917058,3829.7,3829.6,0.001]
[1760724473434,1.728,3829.7,3829.6,0.001]
[1760724473744,1.7735134,3829.7,3829.6,0.4516]
[1760724474244,1.7735134,3829.7,3829.6,0.001]
[1760724475008,0.0455134,3829.7,3829.6,3.06283877]
[1760724475513,0.0455134,3829.7,3829.6,0.4516]
[1760724476366,0.0455134,3829.7,3829.6,3.06283877]
[1760724476541,0.1759134,3829.7,3829.6,3.06283877]
[1760724477841,0.1304,3829.7,3829.6,3.06283877]
[1760724479133,0.1304,3829.7,3829.6,0.001]
[1760724480825,0.1304,3829.7,3829.6,3.06283877]
[1760724481029,0.1304,3829.7,3829.6,3.63035944]
[1760724481237,0.1304,3829.7,3829.6,0.001]
[1760724481555,0.1304,3829.7,3829.6,3.06283877]
[1760724481925,0.04551173,3830.1,3830.0,2.61096605]
[1760724482138,2.61048077,3830.8,3830.1,2.61088256]
[1760724482324,0.04550669,3830.6,3830.1,0.1794]
[1760724482549,0.17590669,3830.6,3830.5,2.61062524]
[1760724482752,0.6946985,3832.1,3830.5,1.02208868]
[1760724482753,2.60973043,3831.9,3830.5,1.02208868]
[1760724482949,0.04549916,3831.3,3830.6,3.09116266]
[1760724483159,0.04549916,3831.3,3831.2,0.1667]
[1760724483363,0.04549916,3831.3,3831.2,3.23134825]
[1760724483568,2.82235334,3833.0,3831.2,3.23134825]
[1760724483569,0.6485,3832.6,3831.6,2.60985346]
[1760724483877,0.04549176,3832.1,3831.6,2.60985771]
[1760724484163,0.04549176,3832.1,3831.7,2.60980765]
[1760724484376,0.04549176,3832.1,3831.6,0.4545]
[1760724484579,0.04549176,3832.1,3831.2,0.1667]
[1760724484883,1.728,3831.9,3830.3,0.4545]
[1760724485067,2.61014825,3831.2,3830.1,2.79025008]
[1760724485265,2.61014825,3831.2,3830.4,2.61064658]
[1760724485434,0.04549917,3831.3,3830.2,0.4545]
[1760724485639,0.04549917,3831.3,3830.3,0.4545]
[1760724485839,0.04549917,3831.3,3831.0,2.61024081]
[1760724486042,2.60960334,3832.0,3831.2,2.6100885]
[1760724486340,0.04549474,3831.6,3831.2,2.6100885]
[1760724486641,1.728,3831.8,3831.2,2.6100885]
[1760724486837,2.60938356,3832.4,3831.2,2.61013984]
[1760724487042,2.60955359,3832.1,3831.3,2.61002943]
[1760724487241,2.60955359,3832.1,3831.4,2.61000596]
[1760724487440,2.05441836,3832.3,3831.1,0.6212]
[1760724487441,0.32641836,3832.3,3831.1,0.6212]
[1760724487668,1.728,3832.4,3831.5,2.60992938]
[1760724487869,2.60948246,3832.2,3831.5,2.60992938]
[1760724488074,3.06465392,3832.3,3831.6,2.60985671]
[1760724488255,3.06465392,3832.3,3831.2,0.4545]
[1760724488256,0.40933752,3832.2,3831.2,0.4545]
[1760724488580,2.82431098,3832.6,3831.9,2.60964803]
[1760724488748,0.80240787,3832.6,3832.0,2.60959919]
[1760724488951,0.4397,3832.9,3831.1,0.1667]
[1760724488952,0.4397,3832.9,3832.1,2.77623243]
[1760724489147,2.60907858,3832.8,3832.1,0.1667]
[1760724489379,1.728,3832.5,3831.9,0.1667]
[1760724489582,1.728,3832.5,3831.4,0.4545]
[1760724489583,0.54314084,3832.7,3831.6,0.1667]
[1760724489852,0.4375,3832.9,3831.6,0.1667]
[1760724489853,1.728,3832.5,3831.9,2.60967124]
[1760724490054,2.60925064,3832.6,3831.7,2.60979128]
[1760724490282,15.33522225,3833.6,3831.7,2.60979128]
[1760724490283,1.728,3832.8,3832.4,0.1667]
[1760724490488,1.728,3832.8,3831.7,0.32309913]
[1760724490489,1.728,3832.4,3831.6,0.1667]
[1760724490689,1.728,3832.4,3831.8,2.60973888]
[1760724491210,1.728,3832.4,3831.9,2.60965945]
[1760724491480,0.2231,3831.9,3830.8,0.1667]
[1760724491680,2.60988288,3831.6,3830.8,2.77710939]
[1760724491995,3.04316749,3832.3,3830.8,2.77710939]
[1760724491996,1.728,3832.1,3831.5,0.1667]
[1760724492310,0.4289,3832.7,3831.5,0.1667]
[1760724492597,0.1304,3831.7,3831.0,0.1304]
[1760724492795,0.1304,3831.3,3830.9,2.61034731]
[1760724492981,0.1304,3831.3,3830.8,2.77709886]
[1760724493180,0.1304,3831.1,3830.9,2.61030675]
[1760724493556,0.1304,3831.1,3831.0,2.61028452]
[1760724493754,0.1304,3831.1,3830.8,0.1667]
[1760724494097,0.1304,3831.1,3830.9,2.61034138]
[1760724494303,0.1304,3831.1,3830.8,0.1667]
[1760724494304,0.1304,3831.1,3831.0,2.61028452]
[1760724494800,0.1304,3831.1,3830.8,0.1667]
[1760724494959,0.1304,3831.1,3830.9,2.61032808]
[1760724495525,0.1304,3831.1,3830.5,0.1667]
[1760724495685,0.1304,3831.1,3830.6,2.61050092]
[1760724495882,0.1304,3831.1,3830.5,0.1667]
[1760724496125,0.1304,3831.1,3831.0,2.61028452]
[1760724496287,0.1304,3831.1,3830.9,2.61032778]
[1760724496683,0.1304,3831.1,3830.7,3.06498765]
[1760724496684,0.1304,3831.1,3831.0,2.61028452]
[1760724497707,0.1304,3831.1,3831.0,3.06478452]
[1760724497908,0.1304,3831.1,3831.0,2.61028452]
[1760724498212,0.1304,3831.1,3830.9,0.001]
[1760724498415,0.4269,3831.0,3830.9,0.001]
[1760724498954,0.1304,3831.1,3830.9,0.001]
[1760724499240,2.74062461,3831.1,3830.9,0.001]
[1760724499439,0.1304,3831.1,3830.9,0.001]
[1760724499934,0.40944656,3831.3,3830.9,0.001]
[1760724500092,3.03718452,3831.0,3830.9,0.001]
[1760724500292,3.64286245,3831.0,3830.9,0.001]
[1760724501309,5.37086245,3831.0,3830.9,0.001]
[1760724501515,4.94396245,3831.0,3830.9,0.001]
[1760724501692,2.37918142,3831.0,3830.9,0.001]
[1760724502102,4.98946594,3831.0,3830.9,0.001]
[1760724502494,5.41636594,3831.0,3830.9,0.001]
[1760724504110,4.98946594,3831.0,3830.9,0.001]
[1760724504308,2.37918142,3831.0,3830.9,0.001]
[1760724504502,4.38378801,3831.0,3830.9,0.001]
[1760724504818,4.81068801,3831.0,3830.9,0.001]
[1760724506031,5.22018092,3831.0,3830.9,0.001]
[1760724507738,2.1829964,3831.0,3830.9,0.001]
[1760724508109,0.04550349,3831.0,3830.9,0.4307]
[1760724508442,0.04550349,3831.0,3830.9,0.001]
[1760724508647,2.1549,3831.7,3830.9,2.61135265]
[1760724508937,1.728,3831.4,3830.9,0.001]
[1760724509142,1.728,3831.4,3830.9,2.6113327]
[1760724509346,0.071,3845.2,3830.9,0.001]
[1760724509347,2.60971892,3831.9,3830.9,0.001]
[1760724509544,0.2292,3832.1,3831.3,0.1667]
[1760724509744,2.60976342,3831.8,3831.3,0.1667]
[1760724509915,2.60972058,3831.9,3831.3,0.1667]
[1760724510270,3.15453633,3831.9,3831.3,0.1667]
[1760724510441,2.60974673,3831.8,3831.3,0.1667]
[1760724510646,0.54484986,3831.9,3831.1,2.61021003]
[1760724510811,0.1304,3831.3,3831.1,2.61021003]
[1760724511345,0.1304,3831.3,3831.0,0.1667]
[1760724511540,0.1304,3831.3,3831.1,0.4297]
[1760724511742,0.1304,3831.3,3831.0,0.1667]
[1760724511945,2.60994388,3831.5,3830.9,0.001]